[Event "Winter Chess Classic-A 2019"]
[Site "Saint Louis"]
[Date "2019.11.13"]
[Round "4.2"]
[White "Akobian, Varuzhan"]
[Black "Jumabayev, Rinat"]
[Result "0-1"]
[ECO "B07"]
[WhiteElo "2627"]
[BlackElo "2641"]
[Annotator "ChessBase"]
[PlyCount "142"]
[EventDate "2019.11.10"]
[EventType "tourn"]
[EventCountry "USA"]
[SourceTitle "playchess.com"]
[Source "ChessBase"]
[SourceQuality "1"]
[TimeControl "40/5400+30:1800+30"]

1. d4 {[%emt 0:00:00]} d6 {[%emt 0:00:00]} 2. e4 {[%emt 0:02:47]} Nf6 {[%emt 0:00:09]} 3. Nc3 {[%emt 0:00:06]} g6 {[%emt 0:00:04]} 4. f3 {[%emt 0:04:12]} c6 {[%emt 0:00:27]} 5. Be3 {[%emt 0:01:04]} b5 {[%emt 0:00:44]} 6. e5 {[%emt 0:01:23]} b4 {[%emt 0:02:49]} 7. exf6 {[%emt 0:15:52]} bxc3 {[%emt 0:00:39]} 8. bxc3 {[%emt 0:00:10]} exf6 {[%emt 0:00:17]} 9. Bd3 {[%emt 0:00:32]} Bg7 {[%emt 0:10:04]} 10. Ne2 {[%emt 0:00:26]} O-O {[%emt 0:01:15]} 11. Qd2 {[%emt 0:00:22]} Ba6 {[%emt 0:02:01]} 12. h4 {[%emt 0:11:27]} Re8 {[%emt 0:03:08]} 13. h5 {[%emt 0:01:19]} Qa5 {[%emt 0:14:04]} 14. Bf4 {[%emt 0:21:46]} d5 {[%emt 0:09:09]} 15. Kf2 {[%emt 0:03:35]} Nd7 {[%emt 0:01:50]} 16. Bd6 {[%emt 0:09:39]} c5 {[%emt 0:10:19]} 17. Bxa6 {[%emt 0:05:01]} Qxa6 {[%emt 0:00:23]} 18. dxc5 {[%emt 0:00:15]} Rac8 {[%emt 0:01:41]} 19. Qd3 {[%emt 0:02:57]} Qa4 {[%emt 0:03:19]} 20. hxg6 {[%emt 0:03:32]} hxg6 {[%emt 0:02:04]} 21. Qxd5 {[%emt 0:11:10]} Qxc2 {[%emt 0:03:56]} 22. Rhe1 {[%emt 0:00:41]} Bh6 {[%emt 0:10:09]} 23. f4 {[%emt 0:02:39]} f5 {[%emt 0:01:29]} 24. Qd1 {[%emt 0:00:34]} Qxd1 {[%emt 0:10:37]} 25. Rexd1 {[%emt 0:00:15]} Nxc5 {[%emt 0:00:13]} 26. Bxc5 {[%emt 0:00:06]} Rxc5 {[%emt 0:00:05]} 27. g3 {[%emt 0:00:36]} Ra5 {[%emt 0:03:23]} 28. Rd2 {[%emt 0:00:25]} Bf8 {[%emt 0:00:49]} 29. Rb1 {[%emt 0:01:05]} Bc5+ {[%emt 0:00:43]} 30. Nd4 {[%emt 0:00:31]} Bb6 {[%emt 0:01:03]} 31. Kf3 {[%emt 0:00:31]} Kg7 {[%emt 0:02:51]} 32. Rb3 {[%emt 0:00:30]} Re1 {[%emt 0:00:39]} 33. Rbb2 {[%emt 0:00:23]} Rc5 {[%emt 0:01:19]} 34. Rbc2 {[%emt 0:00:11]} Rc4 {[%emt 0:02:10]} 35. Rd3 {[%emt 0:00:22]} Kf6 {[%emt 0:02:46]} 36. Kg2 {[%emt 0:00:48]} Ra1 {[%emt 0:00:42]} 37. Kf3 {[%emt 0:00:42]} Ra4 {[%emt 0:00:25]} 38. Rdd2 {[%emt 0:00:08]} Bxd4 {[%emt 0:00:43]} 39. cxd4 {[%emt 0:00:27]} Ra3+ {[%emt 0:00:14]} 40. Kf2 {[%emt 0:00:00]} Rh1 {[%emt 0:00:00]} 41. Kg2 {[%emt 0:07:03]} Re1 {[%emt 0:02:12]} 42. Re2 {[%emt 0:10:48]} Rd1 {[%emt 0:04:44]} 43. Rc6+ {[%emt 0:13:36]} Kg7 {[%emt 0:00:29]} 44. Rc7 {[%emt 0:00:07]} Rdd3 {[%emt 0:01:13]} 45. Ree7 {[%emt 0:00:04]} Rxg3+ {[%emt 0:03:34]} 46. Kh2 {[%emt 0:00:01]} Kh6 {[%emt 0:03:15]} 47. Rxf7 {[%emt 0:00:02]} Kh5 {[%emt 0:00:46]} 48. Rf6 {[%emt 0:00:32]} Rgf3 {[%emt 0:07:41]} 49. Rh7+ {[%emt 0:00:14]} Kg4 {[%emt 0:00:04]} 50. Rxg6+ {[%emt 0:00:05]} Kxf4 {[%emt 0:00:01]} 51. Rg2 {[%emt 0:00:51]} Ke4 {[%emt 0:03:09]} 52. Rd7 {[%emt 0:02:52]} Rh3+ {[%emt 0:02:15]} 53. Kg1 {[%emt 0:00:01]} f4 {[%emt 0:00:15]} 54. d5 {[%emt 0:00:47]} f3 {[%emt 0:03:03]} 55. Rg4+ {[%emt 0:01:19]} Kf5 {[%emt 0:02:36]} 56. Rdg7 {[%emt 0:00:36]} Rxa2 {[%emt 0:00:14]} 57. R7g5+ {[%emt 0:00:23]} Kf6 {[%emt 0:00:04]} 58. Rg6+ {[%emt 0:00:13]} Ke5 {[%emt 0:00:08]} 59. R6g5+ {[%emt 0:00:14]} Kd6 {[%emt 0:00:06]} 60. Rf5 {[%emt 0:00:01]} a5 {[%emt 0:02:55]} 61. Rg6+ {[%emt 0:00:31]} Kc5 {[%emt 0:00:08]} 62. d6+ {[%emt 0:00:20]} Kc6 {[%emt 0:00:45]} 63. Rf7 {[%emt 0:01:30]} Rg2+ {[%emt 0:02:31]} 64. Rxg2 {[%emt 0:00:10]} fxg2 {[%emt 0:00:02]} 65. Kxg2 {[%emt 0:00:42]} Rd3 {[%emt 0:00:55]} 66. Kf2 {[%emt 0:00:54]} Rxd6 {[%emt 0:00:27]} 67. Rf5 {[%emt 0:00:31]} Kb6 {[%emt 0:00:34]} 68. Ke2 {[%emt 0:00:13]} a4 {[%emt 0:00:06]} 69. Rf3 {[%emt 0:00:35]} Kb5 {[%emt 0:00:37]} 70. Rd3 {[%emt 0:00:05]} Ra6 {[%emt 0:00:16]} 71. Rd8 {[%emt 0:01:10]} a3 {[%emt 0:00:27]} 0-1

[Event "Winter Chess Classic-A 2019"]
[Site "Saint Louis"]
[Date "2019.11.16"]
[Round "7.1"]
[White "Naroditsky, Daniel"]
[Black "Sethuraman, S.P."]
[Result "1/2-1/2"]
[ECO "A06"]
[WhiteElo "2613"]
[BlackElo "2634"]
[Annotator "ChessBase"]
[PlyCount "24"]
[EventDate "2019.11.10"]
[EventType "tourn"]
[EventCountry "USA"]
[SourceTitle "playchess.com"]
[Source "ChessBase"]
[SourceQuality "1"]
[TimeControl "40/5400+30:1800+30"]

1. Nf3 {[%emt 0:00:00]} d5 {[%emt 0:00:00]} 2. g3 {[%emt 0:00:29]} Nf6 {[%emt 0:00:00]} 3. Bg2 {[%emt 0:00:07]} c5 {[%emt 0:00:00]} 4. O-O {[%emt 0:01:05]} g6 {[%emt 0:00:04]} 5. c4 {[%emt 0:00:20]} Bg7 {[%emt 0:00:10]} 6. cxd5 {[%emt 0:04:54]} Nxd5 {[%emt 0:00:17]} 7. d4 {[%emt 0:00:07]} cxd4 {[%emt 0:00:08]} 8. Nxd4 {[%emt 0:00:09]} O-O {[%emt 0:00:10]} 9. Nb5 {[%emt 0:08:59]} Be6 {[%emt 0:00:37]} 10. Nd4 {[%emt 0:01:56]} Bc8 {[%emt 0:00:24]} 11. Nb5 {[%emt 0:03:15]} Be6 {[%emt 0:00:08]} 12. Nd4 {[%emt 0:00:18]} Bc8 {[%emt 0:00:05]} 1/2-1/2